[Event "Titled Tuesday Blitz May 23 Early 2023"]
[White "Saim, Mohamed Ilias"]
[Black "Mackster23"]
[WhiteFideId "7900465"]
[WhiteElo "2063"]
[BlackElo "2438"]
[Result "0-1"]
[Round "04"]
[TimeControl "180+2"]
[Date "2023.05.23"]
[WhiteClock "0:00:24"]
[BlackClock "0:00:05"]

1. c4 {[%clk 0:03:00]}  e5 {[%clk 0:02:03]} 2. g3 {[%clk 0:02:57]}  Nc6 {[%clk 0:01:57]} 3. Bg2 {[%clk 0:02:57]}  Nf6 {[%clk 0:01:55]} 4. Nc3 {[%clk 0:02:55]}  Bc5 {[%clk 0:01:47]} 5. Nf3 {[%clk 0:02:55]}  d6 {[%clk 0:01:47]} 6. O-O {[%clk 0:02:55]}  a6 {[%clk 0:01:46]} 7. d3 {[%clk 0:02:50]}  O-O {[%clk 0:01:46]} 8. Bg5 {[%clk 0:02:50]}  h6 {[%clk 0:01:43]} 9. Bxf6 {[%clk 0:02:50]}  Qxf6 {[%clk 0:01:44]} 10. Nd5 {[%clk 0:02:50]}  Qd8 {[%clk 0:01:44]} 11. a3 {[%clk 0:02:47]}  Be6 {[%clk 0:01:38]} 12. b4 {[%clk 0:02:47]}  Ba7 {[%clk 0:01:39]} 13. Nd2 {[%clk 0:02:40]}  Rb8 {[%clk 0:01:36]} 14. a4 {[%clk 0:02:36]}  Bxd5 {[%clk 0:01:28]} 15. Bxd5 {[%clk 0:02:36]}  Nxb4 {[%clk 0:01:28]} 16. Bg2 {[%clk 0:02:36]}  a5 {[%clk 0:01:27]} 17. Ne4 {[%clk 0:02:32]}  c6 {[%clk 0:01:16]} 18. Rc1 {[%clk 0:02:25]}  f5 {[%clk 0:01:15]} 19. Nc3 {[%clk 0:02:21]}  Qg5 {[%clk 0:01:10]} 20. Qb3 {[%clk 0:02:11]}  Bc5 {[%clk 0:01:02]} 21. Na2 {[%clk 0:02:10]}  f4 {[%clk 0:00:58]} 22. Nxb4 {[%clk 0:02:08]}  axb4 {[%clk 0:00:59]} 23. Ra1 {[%clk 0:01:58]}  fxg3 {[%clk 0:00:54]} 24. hxg3 {[%clk 0:01:49]}  Rxf2 {[%clk 0:00:29]} 25. Rxf2 {[%clk 0:01:26]}  Qxg3 {[%clk 0:00:27]} 26. Rf1 {[%clk 0:01:15]}  Rf8 {[%clk 0:00:26]} 27. d4 {[%clk 0:01:09]}  Qxb3 {[%clk 0:00:19]} 28. Rxf8+ {[%clk 0:01:09]}  Kh7 {[%clk 0:00:17]} 29. dxc5 {[%clk 0:01:09]}  Qe3+ {[%clk 0:00:17]} 30. R8f2 {[%clk 0:01:07]}  dxc5 {[%clk 0:00:09]} 31. Kh2 {[%clk 0:01:02]}  h5 {[%clk 0:00:07]} 32. Rf5 {[%clk 0:00:58]}  Kh6 {[%clk 0:00:06]} 33. Bf3 {[%clk 0:00:55]}  g6 {[%clk 0:00:06]} 34. Rf8 {[%clk 0:00:51]}  e4 {[%clk 0:00:06]} 35. Bg2 {[%clk 0:00:46]}  b3 {[%clk 0:00:05]} 36. Rh8+ {[%clk 0:00:45]}  Kg7 {[%clk 0:00:05]} 37. Rff8 {[%clk 0:00:43]}  b2 {[%clk 0:00:04]} 38. Rfg8+ {[%clk 0:00:43]}  Kf6 {[%clk 0:00:04]} 39. Rf8+ {[%clk 0:00:42]}  Kg5 {[%clk 0:00:05]} 40. Re8 {[%clk 0:00:34]}  b1=Q {[%clk 0:00:02]} 41. Re5+ {[%clk 0:00:34]}  Kh4 {[%clk 0:00:03]} 42. Rxe4+ {[%clk 0:00:28]}  Qbxe4 {[%clk 0:00:03]} 43. Bxe4 {[%clk 0:00:29]}  Qxe4 {[%clk 0:00:04]} 44. Rb8 {[%clk 0:00:26]}  Qxe2+ {[%clk 0:00:04]} 45. Kg1 {[%clk 0:00:26]}  Qe1+ {[%clk 0:00:04]} 46. Kg2 {[%clk 0:00:26]}  Qg3+ {[%clk 0:00:04]} 47. Kf1 {[%clk 0:00:24]}  Qxb8 {[%clk 0:00:05]} 0-1


[Site "https://www.chess.com"]

[Event "Titled Tuesday Blitz May 23 Early 2023"]
[White "Yeritsyan, Hayk"]
[Black "Castillo Pena, Patricia Evarista"]
[WhiteFideId "13307320"]
[BlackFideId "6412106"]
[WhiteElo "2437"]
[BlackElo "1919"]
[Result "1-0"]
[Round "04"]
[TimeControl "180+2"]
[Date "2023.05.23"]
[WhiteClock "0:01:46"]
[BlackClock "0:00:00"]

1. b3 {[%clk 0:03:00]}  d5 {[%clk 0:02:54]} 2. Bb2 {[%clk 0:03:01]}  c5 {[%clk 0:02:53]} 3. g3 {[%clk 0:02:58]}  Nc6 {[%clk 0:02:52]} 4. Bg2 {[%clk 0:02:59]}  e5 {[%clk 0:02:48]} 5. e3 {[%clk 0:02:58]}  Nf6 {[%clk 0:02:48]} 6. Ne2 {[%clk 0:02:56]}  Bd6 {[%clk 0:02:45]} 7. O-O {[%clk 0:02:55]}  O-O {[%clk 0:02:45]} 8. d4 {[%clk 0:02:55]}  cxd4 {[%clk 0:02:41]} 9. exd4 {[%clk 0:02:56]}  e4 {[%clk 0:02:42]} 10. c4 {[%clk 0:02:55]}  Re8 {[%clk 0:02:29]} 11. Nbc3 {[%clk 0:02:54]}  Bg4 {[%clk 0:02:12]} 12. Qd2 {[%clk 0:02:45]}  Bb4 {[%clk 0:02:02]} 13. Rfe1 {[%clk 0:02:32]}  dxc4 {[%clk 0:01:42]} 14. d5 {[%clk 0:02:25]}  Ne5 {[%clk 0:01:23]} 15. Nf4 {[%clk 0:02:22]}  Nf3+ {[%clk 0:01:13]} 16. Bxf3 {[%clk 0:02:20]}  Bxf3 {[%clk 0:01:12]} 17. bxc4 {[%clk 0:02:20]}  Qa5 {[%clk 0:01:02]} 18. Qd4 {[%clk 0:02:19]}  Bc5 {[%clk 0:00:56]} 19. Qd2 {[%clk 0:02:17]}  e3 {[%clk 0:00:46]} 20. fxe3 {[%clk 0:02:12]}  Qb6 {[%clk 0:00:36]} 21. Kf2 {[%clk 0:01:51]}  Rxe3 {[%clk 0:00:18]} 22. Kf1 {[%clk 0:01:46]}  Rae8 {[%clk 0:00:10]} 23. Na4 {[%clk 0:01:44]}  Rxe1+ {[%clk 0:00:08]} 24. Rxe1 {[%clk 0:01:45]}  Rxe1+ {[%clk 0:00:00]} 25. Qxe1 {[%clk 0:01:46]} 1-0


[Site "https://www.chess.com"]

[Event "Titled Tuesday Blitz May 23 Early 2023"]
[White "Pinto, Daniel"]
[Black "awayceiling"]
[WhiteFideId "3303144"]
[WhiteElo "2145"]
[BlackElo "1391"]
[Result "1-0"]
[Round "04"]
[TimeControl "180+2"]
[Date "2023.05.23"]
[WhiteClock "0:01:30"]
[BlackClock "0:00:00"]

1. e4 {[%clk 0:02:56]}  c5 {[%clk 0:02:59]} 2. Nf3 {[%clk 0:02:56]}  e6 {[%clk 0:02:58]} 3. c3 {[%clk 0:02:57]}  Nc6 {[%clk 0:02:57]} 4. d4 {[%clk 0:02:57]}  d5 {[%clk 0:02:58]} 5. e5 {[%clk 0:02:57]}  Qb6 {[%clk 0:02:52]} 6. Bd3 {[%clk 0:02:48]}  Bd7 {[%clk 0:02:24]} 7. O-O {[%clk 0:02:47]}  cxd4 {[%clk 0:02:18]} 8. cxd4 {[%clk 0:02:48]}  Nxd4 {[%clk 0:02:14]} 9. Nbd2 {[%clk 0:02:48]}  Nxf3+ {[%clk 0:02:03]} 10. Nxf3 {[%clk 0:02:49]}  Bc5 {[%clk 0:02:03]} 11. b4 {[%clk 0:02:41]}  Qxb4 {[%clk 0:00:54]} 12. Rb1 {[%clk 0:02:39]}  Qa5 {[%clk 0:00:47]} 13. Rxb7 {[%clk 0:02:37]}  Qxa2 {[%clk 0:00:46]} 14. Ng5 {[%clk 0:02:10]}  h6 {[%clk 0:00:26]} 15. Nxf7 {[%clk 0:02:08]}  Kxf7 {[%clk 0:00:26]} 16. Qh5+ {[%clk 0:01:42]}  Ke7 {[%clk 0:00:19]} 17. Bg5+ {[%clk 0:01:34]}  Nf6 {[%clk 0:00:09]} 18. exf6+ {[%clk 0:01:29]}  gxf6 {[%clk 0:00:10]} 19. Bxf6+ {[%clk 0:01:30]}  Kxf6 {[%clk 0:00:00]} 20. Rxd7 {[%clk 0:01:30]} 1-0


[Site "https://www.chess.com"]

[Event "Titled Tuesday Blitz May 23 Early 2023"]
[White "Rodriguez Polo, Mateo"]
[Black "Begmuratov, Alisher"]
[WhiteFideId "24509396"]
[BlackFideId "14203367"]
[WhiteElo "2117"]
[BlackElo "2387"]
[Result "0-1"]
[Round "04"]
[TimeControl "180+2"]
[Date "2023.05.23"]
[WhiteClock "0:00:17"]
[BlackClock "0:00:58"]

1. Nf3 {[%clk 0:03:00]}  c5 {[%clk 0:02:58]} 2. c4 {[%clk 0:03:00]}  Nc6 {[%clk 0:02:58]} 3. b3 {[%clk 0:03:00]}  Nf6 {[%clk 0:02:57]} 4. Bb2 {[%clk 0:03:00]}  g6 {[%clk 0:02:58]} 5. g3 {[%clk 0:03:01]}  Bg7 {[%clk 0:02:58]} 6. Bg2 {[%clk 0:03:01]}  O-O {[%clk 0:02:58]} 7. O-O {[%clk 0:03:02]}  b6 {[%clk 0:02:58]} 8. d4 {[%clk 0:03:02]}  cxd4 {[%clk 0:02:59]} 9. Nxd4 {[%clk 0:03:03]}  Bb7 {[%clk 0:03:00]} 10. Nc3 {[%clk 0:03:01]}  Qc8 {[%clk 0:02:59]} 11. Rc1 {[%clk 0:03:00]}  Nxd4 {[%clk 0:02:59]} 12. Qxd4 {[%clk 0:02:55]}  Bxg2 {[%clk 0:02:55]} 13. Kxg2 {[%clk 0:02:55]}  Qb7+ {[%clk 0:02:55]} 14. f3 {[%clk 0:02:50]}  h5 {[%clk 0:02:41]} 15. Nd5 {[%clk 0:02:50]}  d6 {[%clk 0:02:35]} 16. Qd2 {[%clk 0:02:43]}  Ne8 {[%clk 0:02:18]} 17. Bxg7 {[%clk 0:02:43]}  Nxg7 {[%clk 0:02:18]} 18. e4 {[%clk 0:02:37]}  Rfe8 {[%clk 0:02:16]} 19. Rfd1 {[%clk 0:02:30]}  Rac8 {[%clk 0:02:15]} 20. b4 {[%clk 0:02:28]}  Ne6 {[%clk 0:02:11]} 21. a3 {[%clk 0:02:23]}  b5 {[%clk 0:02:07]} 22. Ne3 {[%clk 0:02:20]}  bxc4 {[%clk 0:02:06]} 23. Qd5 {[%clk 0:02:13]}  Qa6 {[%clk 0:01:59]} 24. Nxc4 {[%clk 0:02:06]}  Rc7 {[%clk 0:01:58]} 25. b5 {[%clk 0:02:05]}  Qa4 {[%clk 0:01:57]} 26. b6 {[%clk 0:01:56]}  Rc5 {[%clk 0:01:50]} 27. Qd3 {[%clk 0:01:45]}  Rec8 {[%clk 0:01:45]} 28. b7 {[%clk 0:01:45]}  Rb8 {[%clk 0:01:45]} 29. Nb2 {[%clk 0:01:41]}  Qc6 {[%clk 0:01:41]} 30. Qe3 {[%clk 0:01:21]}  Rxb7 {[%clk 0:01:33]} 31. Nd3 {[%clk 0:01:20]}  Rc2+ {[%clk 0:01:32]} 32. Kg1 {[%clk 0:01:09]}  Qc3 {[%clk 0:01:30]} 33. Rxc2 {[%clk 0:01:06]}  Qxc2 {[%clk 0:01:31]} 34. Rc1 {[%clk 0:01:06]}  Rb1 {[%clk 0:01:28]} 35. Rxb1 {[%clk 0:00:56]}  Qxb1+ {[%clk 0:01:29]} 36. Kg2 {[%clk 0:00:57]}  Qb3 {[%clk 0:01:20]} 37. Qd2 {[%clk 0:00:27]}  Qxa3 {[%clk 0:01:18]} 38. Nb4 {[%clk 0:00:28]}  Qa5 {[%clk 0:01:10]} 39. Qc3 {[%clk 0:00:24]}  Qc5 {[%clk 0:01:10]} 40. Qa3 {[%clk 0:00:18]}  a5 {[%clk 0:01:08]} 41. Nc2 {[%clk 0:00:18]}  Qxc2+ {[%clk 0:00:58]} 42. Kh3 {[%clk 0:00:17]} 0-1


[Site "https://www.chess.com"]

[Event "Titled Tuesday Blitz May 23 Early 2023"]
[White "Kuchava, Ana"]
[Black "Martic, Ivan"]
[WhiteFideId "13605348"]
[BlackFideId "929301"]
[WhiteElo "2001"]
[BlackElo "2360"]
[Result "0-1"]
[Round "04"]
[TimeControl "180+2"]
[Date "2023.05.23"]
[WhiteClock "0:00:01"]
[BlackClock "0:01:21"]

1. d4 {[%clk 0:03:00]}  Nf6 {[%clk 0:02:59]} 2. Nf3 {[%clk 0:02:59]}  g6 {[%clk 0:02:58]} 3. c4 {[%clk 0:02:59]}  Bg7 {[%clk 0:02:58]} 4. Nc3 {[%clk 0:02:59]}  O-O {[%clk 0:02:58]} 5. e4 {[%clk 0:03:00]}  d6 {[%clk 0:02:59]} 6. Be2 {[%clk 0:03:00]}  Nbd7 {[%clk 0:02:57]} 7. O-O {[%clk 0:03:00]}  e5 {[%clk 0:02:57]} 8. Re1 {[%clk 0:02:58]}  Re8 {[%clk 0:02:56]} 9. Bf1 {[%clk 0:02:55]}  a6 {[%clk 0:02:54]} 10. d5 {[%clk 0:02:46]}  a5 {[%clk 0:02:54]} 11. Qc2 {[%clk 0:02:17]}  Nc5 {[%clk 0:02:52]} 12. b3 {[%clk 0:02:13]}  Bd7 {[%clk 0:02:51]} 13. Bb2 {[%clk 0:02:08]}  Nh5 {[%clk 0:02:33]} 14. a3 {[%clk 0:02:06]}  a4 {[%clk 0:02:30]} 15. b4 {[%clk 0:02:06]}  Nb3 {[%clk 0:02:30]} 16. Rad1 {[%clk 0:02:07]}  Bg4 {[%clk 0:02:07]} 17. Nxa4 {[%clk 0:01:45]}  Bxf3 {[%clk 0:02:05]} 18. gxf3 {[%clk 0:01:40]}  Nd4 {[%clk 0:02:04]} 19. Bxd4 {[%clk 0:01:35]}  exd4 {[%clk 0:02:04]} 20. c5 {[%clk 0:01:27]}  Be5 {[%clk 0:02:01]} 21. f4 {[%clk 0:01:17]}  Nxf4 {[%clk 0:01:57]} 22. f3 {[%clk 0:01:13]}  Qh4 {[%clk 0:01:43]} 23. cxd6 {[%clk 0:00:54]}  cxd6 {[%clk 0:01:44]} 24. Ra1 {[%clk 0:00:19]}  Rec8 {[%clk 0:01:42]} 25. Qd1 {[%clk 0:00:17]}  d3 {[%clk 0:01:38]} 26. Ra2 {[%clk 0:00:15]}  Ne2+ {[%clk 0:01:32]} 27. Rexe2 {[%clk 0:00:06]}  dxe2 {[%clk 0:01:31]} 28. Rxe2 {[%clk 0:00:05]}  Qg5+ {[%clk 0:01:22]} 29. Kh1 {[%clk 0:00:01]}  Rc1 {[%clk 0:01:21]} 0-1


[Site "https://www.chess.com"]

[Event "Titled Tuesday Blitz May 23 Early 2023"]
[White "Heinemann, Josefine"]
[Black "Dahlgren, James Allen"]
[WhiteFideId "12900460"]
[BlackFideId "22256873"]
[WhiteElo "2342"]
[BlackElo "2191"]
[Result "1-0"]
[Round "04"]
[TimeControl "180+2"]
[Date "2023.05.23"]
[WhiteClock "0:00:13"]
[BlackClock "0:00:00"]

1. e4 {[%clk 0:03:00]}  e6 {[%clk 0:02:59]} 2. d4 {[%clk 0:02:57]}  c5 {[%clk 0:03:00]} 3. d5 {[%clk 0:02:56]}  exd5 {[%clk 0:03:00]} 4. exd5 {[%clk 0:02:57]}  d6 {[%clk 0:03:01]} 5. Nf3 {[%clk 0:02:56]}  f5 {[%clk 0:03:02]} 6. Bb5+ {[%clk 0:02:56]}  Nd7 {[%clk 0:03:02]} 7. a4 {[%clk 0:02:56]}  Nf6 {[%clk 0:03:01]} 8. O-O {[%clk 0:02:56]}  Be7 {[%clk 0:03:01]} 9. Ng5 {[%clk 0:02:56]}  O-O {[%clk 0:02:48]} 10. Ne6 {[%clk 0:02:56]}  Qb6 {[%clk 0:02:48]} 11. Nxf8 {[%clk 0:02:56]}  Nxf8 {[%clk 0:02:49]} 12. Re1 {[%clk 0:02:54]}  Bd8 {[%clk 0:02:47]} 13. Nc3 {[%clk 0:02:46]}  a6 {[%clk 0:02:46]} 14. a5 {[%clk 0:02:44]}  Qc7 {[%clk 0:02:43]} 15. Bf1 {[%clk 0:02:44]}  Qf7 {[%clk 0:02:40]} 16. Bf4 {[%clk 0:02:35]}  Be7 {[%clk 0:02:32]} 17. h3 {[%clk 0:02:29]}  Ng6 {[%clk 0:02:31]} 18. Bh2 {[%clk 0:02:27]}  f4 {[%clk 0:02:29]} 19. Qd3 {[%clk 0:02:23]}  Bd7 {[%clk 0:02:19]} 20. Re2 {[%clk 0:02:12]}  Rf8 {[%clk 0:02:18]} 21. Rae1 {[%clk 0:02:11]}  Ne5 {[%clk 0:02:15]} 22. Qd1 {[%clk 0:02:00]}  g5 {[%clk 0:02:14]} 23. b3 {[%clk 0:01:52]}  Bd8 {[%clk 0:02:12]} 24. Rxe5 {[%clk 0:01:47]}  dxe5 {[%clk 0:02:13]} 25. Rxe5 {[%clk 0:01:48]}  h6 {[%clk 0:02:06]} 26. Bc4 {[%clk 0:01:47]}  Kg7 {[%clk 0:01:54]} 27. d6 {[%clk 0:01:40]}  Qg6 {[%clk 0:01:53]} 28. g3 {[%clk 0:01:33]}  Bxa5 {[%clk 0:01:49]} 29. Re7+ {[%clk 0:01:27]}  Kh8 {[%clk 0:01:46]} 30. Bd3 {[%clk 0:01:25]}  Bf5 {[%clk 0:01:42]} 31. Ne2 {[%clk 0:01:20]}  f3 {[%clk 0:01:30]} 32. Nc1 {[%clk 0:01:18]}  g4 {[%clk 0:01:21]} 33. hxg4 {[%clk 0:01:00]}  Qxg4 {[%clk 0:01:10]} 34. Bxf5 {[%clk 0:00:56]}  Qxf5 {[%clk 0:01:11]} 35. Nd3 {[%clk 0:00:54]}  Ng4 {[%clk 0:01:04]} 36. Qa1+ {[%clk 0:00:40]}  Rf6 {[%clk 0:00:58]} 37. Qxa5 {[%clk 0:00:34]}  Rxd6 {[%clk 0:00:42]} 38. Qc3+ {[%clk 0:00:31]}  Rf6 {[%clk 0:00:41]} 39. Nf4 {[%clk 0:00:19]}  Kg8 {[%clk 0:00:27]} 40. Qd3 {[%clk 0:00:17]}  Qxd3 {[%clk 0:00:21]} 41. cxd3 {[%clk 0:00:18]}  Rb6 {[%clk 0:00:17]} 42. Re1 {[%clk 0:00:12]}  Rxb3 {[%clk 0:00:15]} 43. Rc1 {[%clk 0:00:12]}  b6 {[%clk 0:00:12]} 44. Nd5 {[%clk 0:00:13]}  Rb2 {[%clk 0:00:10]} 45. Ne3 {[%clk 0:00:12]}  Nxe3 {[%clk 0:00:06]} 46. fxe3 {[%clk 0:00:13]}  Rg2+ {[%clk 0:00:04]} 47. Kh1 {[%clk 0:00:13]}  Re2 {[%clk 0:00:03]} 48. e4 {[%clk 0:00:13]}  Rd2 {[%clk 0:00:03]} 49. Bg1 {[%clk 0:00:11]}  f2 {[%clk 0:00:02]} 50. Bxf2 {[%clk 0:00:11]}  Rxf2 {[%clk 0:00:03]} 51. Kg1 {[%clk 0:00:12]}  Rd2 {[%clk 0:00:03]} 52. Rc3 {[%clk 0:00:12]}  a5 {[%clk 0:00:04]} 53. Rb3 {[%clk 0:00:12]}  a4 {[%clk 0:00:03]} 54. Rxb6 {[%clk 0:00:12]}  Rxd3 {[%clk 0:00:04]} 55. Kf2 {[%clk 0:00:13]}  a3 {[%clk 0:00:04]} 56. Ra6 {[%clk 0:00:13]}  c4 {[%clk 0:00:04]} 57. Ra7 {[%clk 0:00:12]}  Rb3 {[%clk 0:00:03]} 58. Ke2 {[%clk 0:00:11]}  Rb2+ {[%clk 0:00:03]} 59. Ke3 {[%clk 0:00:11]}  a2 {[%clk 0:00:03]} 60. Kd4 {[%clk 0:00:11]}  Rg2 {[%clk 0:00:02]} 61. Kxc4 {[%clk 0:00:11]}  Rxg3 {[%clk 0:00:01]} 62. Kd4 {[%clk 0:00:12]}  h5 {[%clk 0:00:00]} 63. e5 {[%clk 0:00:13]} 1-0


[Site "https://www.chess.com"]

[Event "Titled Tuesday Blitz May 23 Early 2023"]
[White "stratacticos"]
[Black "Smiechu"]
[WhiteElo "1896"]
[BlackElo "2312"]
[Result "0-1"]
[Round "04"]
[TimeControl "180+2"]
[Date "2023.05.23"]
[WhiteClock "0:00:00"]
[BlackClock "0:00:29"]

1. e4 {[%clk 0:03:00]}  c5 {[%clk 0:03:00]} 2. b4 {[%clk 0:02:58]}  cxb4 {[%clk 0:02:59]} 3. a3 {[%clk 0:02:58]}  d5 {[%clk 0:02:57]} 4. exd5 {[%clk 0:02:56]}  Nf6 {[%clk 0:02:57]} 5. Nf3 {[%clk 0:02:57]}  Nxd5 {[%clk 0:02:57]} 6. axb4 {[%clk 0:02:56]}  Bg4 {[%clk 0:02:55]} 7. h3 {[%clk 0:02:42]}  Bh5 {[%clk 0:02:52]} 8. g4 {[%clk 0:02:42]}  Bg6 {[%clk 0:02:40]} 9. c3 {[%clk 0:02:30]}  e6 {[%clk 0:02:39]} 10. d4 {[%clk 0:02:28]}  Bd6 {[%clk 0:02:38]} 11. Bd3 {[%clk 0:02:07]}  Nd7 {[%clk 0:02:32]} 12. Bd2 {[%clk 0:01:54]}  N7f6 {[%clk 0:02:21]} 13. Bb5+ {[%clk 0:01:48]}  Ke7 {[%clk 0:01:56]} 14. Ne5 {[%clk 0:01:38]}  Bxe5 {[%clk 0:01:50]} 15. dxe5 {[%clk 0:01:38]}  Ne4 {[%clk 0:01:51]} 16. O-O {[%clk 0:01:15]}  a6 {[%clk 0:01:48]} 17. Bd3 {[%clk 0:01:06]}  Re8 {[%clk 0:01:46]} 18. Bxe4 {[%clk 0:01:05]}  Bxe4 {[%clk 0:01:46]} 19. Bg5+ {[%clk 0:01:05]}  f6 {[%clk 0:01:45]} 20. exf6+ {[%clk 0:01:05]}  gxf6 {[%clk 0:01:46]} 21. Bh4 {[%clk 0:00:52]}  Rg8 {[%clk 0:01:42]} 22. f3 {[%clk 0:00:45]}  Bg6 {[%clk 0:01:34]} 23. Na3 {[%clk 0:00:41]}  Nxc3 {[%clk 0:01:30]} 24. Qb3 {[%clk 0:00:28]}  Qd4+ {[%clk 0:01:27]} 25. Bf2 {[%clk 0:00:27]}  Ne2+ {[%clk 0:01:20]} 26. Kg2 {[%clk 0:00:26]}  Nf4+ {[%clk 0:01:20]} 27. Kg3 {[%clk 0:00:20]}  Qe5 {[%clk 0:01:20]} 28. Rfe1 {[%clk 0:00:15]}  Ne2+ {[%clk 0:01:16]} 29. Kg2 {[%clk 0:00:15]}  h5 {[%clk 0:01:12]} 30. Rxe2 {[%clk 0:00:14]}  Qxe2 {[%clk 0:01:11]} 31. Re1 {[%clk 0:00:15]}  Qxe1 {[%clk 0:01:02]} 32. Bxe1 {[%clk 0:00:14]}  hxg4 {[%clk 0:01:02]} 33. hxg4 {[%clk 0:00:13]}  f5 {[%clk 0:01:02]} 34. Nc4 {[%clk 0:00:09]}  fxg4 {[%clk 0:01:00]} 35. fxg4 {[%clk 0:00:09]}  Be4+ {[%clk 0:01:00]} 36. Kg3 {[%clk 0:00:08]}  Rad8 {[%clk 0:00:53]} 37. Ne5 {[%clk 0:00:06]}  Rd5 {[%clk 0:00:50]} 38. Bc3 {[%clk 0:00:04]}  Rc8 {[%clk 0:00:31]} 39. b5 {[%clk 0:00:00]}  axb5 {[%clk 0:00:29]} 0-1


[Site "https://www.chess.com"]

[Event "Titled Tuesday Blitz May 23 Early 2023"]
[White "Clawitter, Craig"]
[Black "Fantinel, Thibault"]
[WhiteFideId "2023105"]
[BlackFideId "663395"]
[WhiteElo "2244"]
[BlackElo "2316"]
[Result "0-1"]
[Round "04"]
[TimeControl "180+2"]
[Date "2023.05.23"]
[WhiteClock "0:00:00"]
[BlackClock "0:00:24"]

1. e4 {[%clk 0:02:59]}  c5 {[%clk 0:02:58]} 2. Nf3 {[%clk 0:02:57]}  e6 {[%clk 0:02:58]} 3. d4 {[%clk 0:02:57]}  cxd4 {[%clk 0:02:59]} 4. Nxd4 {[%clk 0:02:58]}  Nc6 {[%clk 0:03:00]} 5. Nc3 {[%clk 0:02:58]}  Qc7 {[%clk 0:03:00]} 6. Be3 {[%clk 0:02:57]}  a6 {[%clk 0:03:01]} 7. Qd2 {[%clk 0:02:56]}  Nf6 {[%clk 0:03:00]} 8. O-O-O {[%clk 0:02:55]}  Nxd4 {[%clk 0:02:57]} 9. Qxd4 {[%clk 0:02:54]}  Ng4 {[%clk 0:02:51]} 10. Qb6 {[%clk 0:02:36]}  Qc6 {[%clk 0:02:51]} 11. Bd4 {[%clk 0:02:22]}  e5 {[%clk 0:02:51]} 12. Qxc6 {[%clk 0:02:05]}  bxc6 {[%clk 0:02:40]} 13. Bb6 {[%clk 0:02:00]}  Rb8 {[%clk 0:02:38]} 14. Ba7 {[%clk 0:01:38]}  Ra8 {[%clk 0:02:33]} 15. Bb6 {[%clk 0:01:37]}  Rb8 {[%clk 0:02:17]} 16. Ba7 {[%clk 0:01:35]}  Rb7 {[%clk 0:02:17]} 17. Be2 {[%clk 0:01:31]}  Rxa7 {[%clk 0:02:12]} 18. Bxg4 {[%clk 0:01:31]}  Bc5 {[%clk 0:02:04]} 19. Rd2 {[%clk 0:01:22]}  Ke7 {[%clk 0:01:54]} 20. Rhd1 {[%clk 0:01:20]}  h5 {[%clk 0:01:55]} 21. Bh3 {[%clk 0:01:03]}  Rc7 {[%clk 0:01:26]} 22. Na4 {[%clk 0:00:55]}  Bd4 {[%clk 0:01:21]} 23. c3 {[%clk 0:00:54]}  Ba7 {[%clk 0:01:22]} 24. b3 {[%clk 0:00:48]}  Rd8 {[%clk 0:01:14]} 25. Nb2 {[%clk 0:00:45]}  d6 {[%clk 0:00:42]} 26. Bxc8 {[%clk 0:00:42]}  Rcxc8 {[%clk 0:00:43]} 27. Nc4 {[%clk 0:00:40]}  Bb8 {[%clk 0:00:37]} 28. Kc2 {[%clk 0:00:27]}  Bc7 {[%clk 0:00:37]} 29. Rd3 {[%clk 0:00:18]}  Ke6 {[%clk 0:00:37]} 30. Rg3 {[%clk 0:00:08]}  g6 {[%clk 0:00:37]} 31. Rf1 {[%clk 0:00:07]}  d5 {[%clk 0:00:34]} 32. exd5+ {[%clk 0:00:07]}  cxd5 {[%clk 0:00:35]} 33. Ne3 {[%clk 0:00:07]}  Ba5 {[%clk 0:00:29]} 34. Nd1 {[%clk 0:00:05]}  Bxc3 {[%clk 0:00:26]} 35. Rxc3 {[%clk 0:00:04]}  d4 {[%clk 0:00:25]} 36. Rxc8 {[%clk 0:00:03]}  Rxc8+ {[%clk 0:00:26]} 37. Kb2 {[%clk 0:00:04]}  Kd5 {[%clk 0:00:27]} 38. f4 {[%clk 0:00:03]}  e4 {[%clk 0:00:28]} 39. f5 {[%clk 0:00:04]}  g5 {[%clk 0:00:27]} 40. f6 {[%clk 0:00:03]}  Ke5 {[%clk 0:00:27]} 41. h3 {[%clk 0:00:02]}  d3 {[%clk 0:00:25]} 42. g4 {[%clk 0:00:01]}  Rc2+ {[%clk 0:00:24]} 43. Kb1 {[%clk 0:00:02]}  hxg4 {[%clk 0:00:24]} 44. hxg4 {[%clk 0:00:02]}  Kd4 {[%clk 0:00:24]} 45. Rf5 {[%clk 0:00:01]}  e3 {[%clk 0:00:24]} 46. Rxg5 {[%clk 0:00:00]}  e2 {[%clk 0:00:24]} 0-1


[Site "https://www.chess.com"]

[Event "Titled Tuesday Blitz May 23 Early 2023"]
[White "Thiel, Thomas"]
[Black "Koutlas, Nikolaos"]
[WhiteFideId "4615964"]
[BlackFideId "25827138"]
[WhiteElo "2235"]
[BlackElo "2215"]
[Result "0-1"]
[Round "04"]
[TimeControl "180+2"]
[Date "2023.05.23"]
[WhiteClock "0:01:18"]
[BlackClock "0:01:28"]

1. e4 {[%clk 0:03:00]}  c5 {[%clk 0:02:47]} 2. Nc3 {[%clk 0:02:57]}  g6 {[%clk 0:02:46]} 3. d4 {[%clk 0:02:55]}  cxd4 {[%clk 0:02:45]} 4. Qxd4 {[%clk 0:02:55]}  Nf6 {[%clk 0:02:46]} 5. Be3 {[%clk 0:02:55]}  Nc6 {[%clk 0:02:45]} 6. Qd2 {[%clk 0:02:55]}  Ng4 {[%clk 0:02:31]} 7. Bd4 {[%clk 0:02:54]}  Nxd4 {[%clk 0:02:29]} 8. Qxd4 {[%clk 0:02:52]}  Qb6 {[%clk 0:02:24]} 9. Qxb6 {[%clk 0:02:37]}  axb6 {[%clk 0:02:23]} 10. h3 {[%clk 0:02:29]}  Ne5 {[%clk 0:02:15]} 11. f4 {[%clk 0:02:24]}  Nc6 {[%clk 0:02:11]} 12. Nd5 {[%clk 0:02:24]}  Ra4 {[%clk 0:02:09]} 13. c4 {[%clk 0:02:08]}  Kd8 {[%clk 0:02:04]} 14. a3 {[%clk 0:01:50]}  Bg7 {[%clk 0:01:55]} 15. e5 {[%clk 0:01:49]}  b5 {[%clk 0:01:43]} 16. b3 {[%clk 0:01:40]}  Ra7 {[%clk 0:01:40]} 17. cxb5 {[%clk 0:01:38]}  Nd4 {[%clk 0:01:38]} 18. Bc4 {[%clk 0:01:29]}  Nc2+ {[%clk 0:01:27]} 19. Kd2 {[%clk 0:01:18]}  Nxa1 {[%clk 0:01:28]} 0-1


[Site "https://www.chess.com"]